[Event "Bangabandhu Premier Div League 2023-24"]
[Site "Dhaka"]
[Date "2024.02.09"]
[Round "9.4"]
[White "Subrota, Biswas"]
[Black "Narayanan, Srinath"]
[Result "1/2-1/2"]
[ECO "C60"]
[WhiteElo "2223"]
[BlackElo "2552"]
[Annotator "TA"]
[PlyCount "104"]
[EventDate "2024.02.01"]
[EventCountry "BAN"]
[SourceTitle "playchess.com"]
[Source "ChessBase"]
[SourceQuality "1"]
[TimeControl "40/5400+30:1800+30"]

{[%evp 11,104,18,22,13,43,41,56,52,38,20,47,33,53,40,53,48,80,77,120,62,75,86,93,93,84,85,99,83,82,70,70,65,71,79,85,62,89,54,70,89,220,223,232,149,210,216,203,140,148,120,116,124,112,107,111,98,111,111,132,129,128,65,66,72,68,62,69,63,107,106,115,111,139,98,117,37,53,0,0,0,0,0,0,0,0,0,24,14,20,20,49,44,508,512,905]} 1. e4 {[%emt 0:07:58]} e5 {[%emt 0:00:11]} 2. Nf3 {[%emt 0:00:34]} Nc6 {[%emt 0:00:08]} 3. Bb5 {[%emt 0:00:38]} Nge7 {[%emt 0:00:44]} 4. O-O {[%emt 0:03:07]} Ng6 {[%emt 0:00:54]} 5. d4 {[%emt 0:01:15]} exd4 {[%emt 0:03:13]} 6. Nxd4 {[%emt 0:00:41]} Bc5 {[%emt 0:00:13]} 7. Be3 {[%emt 0:04:22]} Bxd4 {[%emt 0:17:38]} 8. Bxd4 {[%emt 0:00:06]} Nxd4 {[%emt 0:01:00]} 9. Qxd4 {[%emt 0:00:28] White is slightly better.} Qg5 {[%emt 0:00:08] [#] ...Nh4 would now be deadly.} 10. Qd5 {[%emt 0:02:47]} Qe7 {[%emt 0:00:30]} (10... h6 {seems wilder.} 11. Bc4 O-O 12. Nc3 d6) 11. Qd2 {[%emt 0:00:30]} O-O {[%emt 0:00:30]} 12. Nc3 {[%emt 0:00:30]} d6 13. f4 {[%emt 1:14:04][%cal Bf2f4,Bf4e5,Be5e6][%mdl 32] f5 is the strong threat.} f5 {[%emt 0:11:39]} 14. Rae1 {[%emt 0:00:00]} Qd8 {[%emt 0:03:08]} 15. Bc4+ {[%emt 0:00:00]} (15. exf5 $16 Bxf5 16. Qd5+ Kh8 17. Qxb7) 15... Kh8 $14 {[%emt 0:00:02]} 16. e5 {[%emt 0:00:00]} dxe5 {[%emt 0:09:03]} 17. Qxd8 {[%emt 0:00:00]} Rxd8 {[%emt 0:00:02]} 18. fxe5 {[%emt 0:00:00]} c6 {[%emt 0:00:25] Against Nb5} 19. e6 {[%emt 0:00:00]} Ne7 {[%emt 0:00:06]} 20. Rd1 {[%emt 0:00:00]} Re8 {[%emt 0:01:27]} 21. a4 {[%emt 0:00:00]} g6 {[%emt 0:12:09]} 22. b4 {[%emt 0:00:00][%cal Bb2b4,Bb4b5,Bb5c6,Bc6c7][%mdl 32]} Kg7 {[%emt 0:03:52]} 23. g4 {[%emt 0:00:00] White has more active pieces.} b6 {[%emt 0:06:26]} 24. b5 {[%emt 0:00:00]} Rb8 {[%emt 0:03:32]} 25. gxf5 {[%emt 0:00:00]} Nxf5 {[%emt 0:05:21]} (25... gxf5 $16 26. bxc6 Nxc6) 26. bxc6 $18 {[%emt 0:00:00]} Bxe6 {[%emt 0:00:58]} 27. c7 {[%emt 0:00:00]} Rbc8 {[%emt 0:00:43]} (27... Bxc4 $16 28. cxb8=R (28. cxb8=Q Rxb8 29. Rd7+ Kh6 $18) 28... Rxb8) 28. Bxe6 {[%emt 0:00:00]} Rxe6 {[%emt 0:00:03]} 29. Nb5 {[%emt 0:00:00][%cal Od1d8] aiming for Rd8!} Re7 {[%emt 0:00:25]} 30. Rd8 {[%emt 0:00:00] Repels Kh6} (30. Nxa7 Rcxc7 31. Nb5 Rxc2 $17) 30... Rexc7 {[%emt 0:00:23]} 31. Nxc7 {[%emt 0:00:00]} Rxc7 $16 {[%emt 0:00:03][%mdl 4096] Endgame. KRR-KRN} 32. Rc1 {[%emt 0:00:00]} Kf6 {[%emt 0:01:34]} 33. c4 {[%emt 0:00:00]} h5 {[%emt 0:00:17]} 34. Kf2 {[%emt 0:00:00]} Ke5 {[%emt 0:01:55]} 35. Kf3 {[%emt 0:01:29]} Rc5 {[%emt 0:02:22] [#]} 36. Rd7 {[%emt 0:04:11]} (36. Ke2 $1 $16) 36... Ra5 $14 {[%emt 0:00:36]} 37. Re1+ {[%emt 0:00:22]} Kf6 {[%emt 0:00:03]} 38. Ra1 {[%emt 0:00:28]} Ke6 {[%emt 0:00:11] Dodges Rd5} 39. Rc7 {[%emt 0:01:39]} Nd4+ {[%emt 0:02:15]} 40. Ke4 {[%emt 0:02:49]} Nb3 {[%emt 0:00:55]} 41. Rg1 {[%emt 0:31:27][%cal Rg1g6]} Nc5+ {[%emt 0:34:37]} 42. Kd4 {[%emt 0:00:00]} g5 {[%emt 0:11:49]} 43. Rc6+ {[%emt 0:02:35]} ({Much weaker is} 43. Rxg5 $6 Nb3+ (43... Nxa4 $2 {loses.} 44. Rxa5 bxa5 45. Rxa7 $18) 44. Kc3 Rxg5 $11) ({Better is} 43. Rf1 $16) 43... Kf5 {[%emt 0:00:30]} 44. Re1 {[%emt 0:00:30]} (44. h4 $14 gxh4 45. Rh6) 44... Rxa4 $11 {[%emt 0:00:30]} 45. h3 {[%emt 0:00:30][%cal Re1f1]} Nb3+ {[%emt 0:00:30]} 46. Kc3 {[%emt 0:00:00]} Na5 {[%emt 0:00:00]} 47. Rf1+ {[%emt 0:00:00]} Ke5 {[%emt 0:00:00]} 48. Rg6 {[%emt 0:00:00]} Ra3+ {[%emt 0:00:00]} 49. Kb4 {[%emt 0:00:00][%mdl 1024] White has compensation.} Rb3+ {[%emt 0:00:00]} 50. Ka4 {[%emt 0:02:30]} Rg3 {[%emt 0:02:30]} 51. c5 {[%emt 0:00:30][%cal Bc4c5,Bc5c6][%mdl 32]} Nc4 $2 {[%emt 0:00:30][%mdl 8192]} (51... Nb3 $14) 52. c6 $18 {[%emt 0:00:30] Black must now prevent c7.} Kd5 {[%emt 0:00:00][%mdl 32768] Weighted Error Value: White=0.16 (very precise) /Black=0.30.  Loses game:     	---       	Black=1      Mistake:       	White=4     	Black=3      Inaccurate:     	White=3     	Black=7      OK:         	White=20    	Black=12     Best:        	White=3     	Black=6     . An unexpected result.} (52... Nd6 $142 53. Rc1 Ne8 54. Re1+ (54. c7 Nxc7 55. Rxc7 h4 $18) 54... Kf5) 1/2-1/2

[Event "Bangabandhu Premier Div League 2023-24"]
[Site "Dhaka"]
[Date "2024.02.09"]
[Round "9.4"]
[White "Anata, Choudhury"]
[Black "Asif, Mahmud"]
[Result "1-0"]
[ECO "B90"]
[WhiteElo "2196"]
[BlackElo "1906"]
[Annotator "NA RC"]
[PlyCount "49"]
[EventDate "2024.02.01"]
[EventCountry "BAN"]
[SourceTitle "playchess.com"]
[Source "ChessBase"]
[SourceQuality "1"]
[TimeControl "40/5400+30:1800+30"]

1. e4 {[%emt 1:31:00]} c5 {[%emt 0:00:51]} 2. Nf3 d6 {[%emt 0:00:09]} 3. d4 {[%emt 0:00:00]} cxd4 {[%emt 0:00:02]} 4. Nxd4 Nf6 5. Nc3 {[%emt 0:00:00]} a6 {[%emt 0:00:11]} 6. h3 e5 {[%emt 0:00:09]} 7. Nf3 Be6 8. g4 Be7 {[%emt 0:05:28]} 9. g5 {[%emt 0:00:00]} Nfd7 {[%emt 0:01:22]} 10. Be3 Qc7 11. Qd2 b5 {[%emt 0:06:31]} 12. O-O-O Nb6 13. Nh4 b4 {[%emt 0:18:18]} 14. Nd5 Bxd5 15. exd5 {[%emt 0:00:00]} Nc4 {[%emt 0:01:28]} 16. Bxc4 {[%emt 0:00:00]} Qxc4 {[%emt 0:00:30]} 17. Nf5 g6 {[%emt 1:04:01]} 18. b3 {[%emt 0:08:30]} Qb5 {[%emt 0:00:00]} 19. Nxe7 {[%emt 0:00:00]} Kxe7 {[%emt 0:00:00]} 20. f4 {[%emt 0:01:00]} Rd8 {[%emt 0:00:00]} 21. fxe5 {[%emt 0:00:30]} dxe5 {[%emt 0:00:00]} 22. Rhf1 {[%emt 0:00:30]} f5 {[%emt 0:02:30]} 23. gxf6+ {[%emt 0:00:00]} Kf7 {[%emt 0:00:30]} 24. Bb6 {[%emt 0:01:00]} Rd7 {[%emt 0:00:00]} 25. Qh6 {[%emt 0:00:00]} 1-0

[Event "Bangabandhu Premier Div League 2023-24"]
[Site "Dhaka"]
[Date "2024.02.09"]
[Round "9.5"]
[White "Shawket Bin, Osman Shaon"]
[Black "Mohammad Minhaz Uddin"]
[Result "1-0"]
[ECO "E49"]
[WhiteElo "2030"]
[BlackElo "2224"]
[Annotator "RC"]
[PlyCount "95"]
[EventDate "2024.02.01"]
[EventCountry "BAN"]
[SourceTitle "playchess.com"]
[Source "ChessBase"]
[SourceQuality "1"]
[TimeControl "40/5400+30:1800+30"]

1. d4 {[%emt 0:09:24]} Nf6 {[%emt 0:00:06]} 2. c4 {[%emt 0:00:05]} e6 {[%emt 0:00:06]} 3. Nc3 {[%emt 0:00:03]} Bb4 {[%emt 0:00:05]} 4. e3 {[%emt 0:00:03]} O-O {[%emt 0:00:07]} 5. Bd3 {[%emt 0:00:06]} d5 {[%emt 0:00:42]} 6. a3 {[%emt 0:01:52]} Bxc3+ {[%emt 0:00:06]} 7. bxc3 {[%emt 0:00:04]} dxc4 {[%emt 0:00:44]} 8. Bxc4 {[%emt 0:00:10]} c5 {[%emt 0:00:03]} 9. Ne2 {[%emt 0:00:30]} Nc6 {[%emt 0:06:48]} 10. O-O {[%emt 0:00:19]} Qc7 {[%emt 0:00:03]} 11. Qc2 {[%emt 0:10:25]} Rd8 {[%emt 0:05:30]} 12. f4 Na5 13. Bd3 {[%emt 0:14:40]} c4 {[%emt 0:21:23]} 14. Be4 {[%emt 0:00:05]} Nb3 {[%emt 0:00:11]} 15. Ra2 {[%emt 0:02:26]} Nxe4 {[%emt 0:01:16]} 16. Qxe4 {[%emt 0:00:08]} f5 {[%emt 0:15:21]} 17. Qc2 {[%emt 0:04:28]} b6 {[%emt 0:02:19]} 18. Ng3 {[%emt 0:04:22]} Bb7 {[%emt 0:00:44]} 19. e4 {[%emt 0:00:20]} fxe4 {[%emt 0:03:44]} 20. Be3 {[%emt 0:00:22]} Qc6 {[%emt 0:00:26]} 21. f5 {[%emt 0:05:21]} Rf8 {[%emt 0:02:05]} 22. Qd1 {[%emt 0:00:30]} exf5 {[%emt 0:03:15]} 23. Nxf5 {[%emt 0:00:19]} Rfe8 {[%emt 0:08:14]} 24. Qg4 {[%emt 0:04:16]} Qg6 {[%emt 0:00:25]} 25. Qf4 {[%emt 0:01:01]} Bd5 {[%emt 0:07:08]} 26. Raf2 {[%emt 0:01:29]} h6 {[%emt 0:01:46]} 27. Qh4 {[%emt 0:01:29]} Re6 {[%emt 0:04:13]} 28. Ne7+ {[%emt 0:00:57]} Rxe7 {[%emt 0:00:03]} 29. Qxe7 {[%emt 0:00:08]} Na5 {[%emt 0:04:33]} 30. Rf8+ {[%emt 0:03:49]} Rxf8 {[%emt 0:00:02]} 31. Rxf8+ {[%emt 0:00:09]} Kh7 {[%emt 0:00:04]} 32. Qd8 {[%emt 0:00:42]} Qe6 {[%emt 0:02:15]} 33. Rh8+ {[%emt 0:00:30]} Kg6 {[%emt 0:00:02]} 34. Re8 {[%emt 0:01:28]} Qf7 {[%emt 0:02:19]} 35. Qd6+ {[%emt 0:01:11]} Kh7 {[%emt 0:00:21]} 36. Re7 {[%emt 0:01:08]} Qh5 {[%emt 0:02:34]} 37. Rd7 {[%emt 0:04:33]} Bc6 {[%emt 0:01:29]} 38. Rc7 {[%emt 0:01:14]} Ba4 {[%emt 0:03:47]} 39. Qe7 {[%emt 0:02:43]} Qg6 {[%emt 0:01:12]} 40. d5 {[%emt 0:00:11]} Nb3 {[%emt 0:00:30]} 41. d6 {[%emt 0:31:06]} Nc5 {[%emt 0:30:21]} 42. Bxc5 {[%emt 0:01:12]} bxc5 {[%emt 0:00:07]} 43. h3 {[%emt 0:04:52]} e3 {[%emt 0:02:59]} 44. d7 {[%emt 0:22:20]} Qb1+ {[%emt 0:00:00]} 45. Kh2 {[%emt 0:00:00]} Qf5 {[%emt 0:00:00]} 46. Qxg7+ {[%emt 0:00:00]} Kxg7 {[%emt 0:00:00]} 47. d8=Q+ {[%emt 0:00:00]} Kg6 {[%emt 0:04:32]} 48. Qg8+ {[%emt 0:00:00]} 1-0

[Event "Bangabandhu Premier Div League 2023-24"]
[Site "Dhaka"]
[Date "2024.02.09"]
[Round "9.5"]
[White "Nasim Hossain, Bhuiyan"]
[Black "Puranik, Abhimanyu"]
[Result "0-1"]
[ECO "A48"]
[WhiteElo "1812"]
[BlackElo "2645"]
[Annotator "TA"]
[PlyCount "94"]
[EventDate "2024.02.01"]
[EventCountry "BAN"]
[SourceTitle "playchess.com"]
[Source "ChessBase"]
[SourceQuality "1"]
[TimeControl "40/5400+30:1800+30"]

{[%evp 10,94,12,0,0,0,0,-6,-1,-10,0,-10,0,7,0,-30,-10,-14,-9,-16,0,-8,-16,-16,-13,-22,-23,-16,-11,-42,-33,-35,-25,-33,-27,-29,-42,-58,-65,-58,-29,-51,-43,-48,-51,-66,-58,-103,-87,-144,-143,-244,-226,-235,-229,-248,-233,-254,-265,-254,-231,-258,-267,-324,-310,-387,-383,-444,-431,-516,-523,-518,-510,-590,-587,-778,-751,-808,-797,-965,-923,-1060,-1019,-1069,-1019,-1011,-959]} 1. d4 {[%emt 0:00:03]} Nf6 {[%emt 0:00:04]} 2. Nf3 g6 {[%emt 0:00:04]} 3. e3 {[%emt 0:00:54]} Bg7 {[%emt 0:00:05]} 4. Bd3 {[%emt 0:00:04]} d6 {[%emt 0:00:11]} 5. O-O {[%emt 0:00:13]} O-O {[%emt 0:00:08]} 6. b3 {[%emt 0:00:11]} e5 7. dxe5 dxe5 {[%emt 0:01:17] [#] Hoping for ...e4.} 8. e4 {[%emt 0:02:13]} Re8 {[%emt 0:01:35] The position is equal.} 9. Bb2 {[%emt 0:02:37]} Nh5 10. Na3 {[%emt 0:10:19]} a6 11. Nc4 Nc6 12. Ne3 {[%emt 0:02:17]} Nd4 {[%emt 0:19:36]} 13. Re1 {[%emt 0:16:15]} Nf4 14. Bf1 {[%emt 0:00:30]} Qf6 {[%emt 0:01:00][%cal Of4h3] ...Nh3+! would now be deadly.} 15. Bxd4 {[%emt 1:02:24]} exd4 {[%emt 0:00:05]} 16. e5 {[%emt 0:00:00]} Qd8 {[%emt 1:14:25]} 17. Qxd4 {[%emt 0:00:00]} Qxd4 {[%emt 0:00:00]} 18. Nxd4 {[%emt 0:00:00]} Rxe5 {[%emt 0:00:00]} ({But not} 18... Bxe5 19. Nc4 f6 20. Nxe5 fxe5 21. Ne2 $14) 19. c3 {[%emt 0:00:00]} Bd7 {[%emt 0:01:30]} 20. Rad1 {[%emt 0:00:00]} Rae8 {[%emt 0:00:00][%cal Od7g4]} 21. g3 {[%emt 0:03:00]} Nh3+ {[%emt 0:00:00]} 22. Bxh3 {[%emt 0:00:00]} Bxh3 {[%emt 0:00:00]} 23. Nf3 {[%emt 0:00:00]} R5e7 $36 {[%emt 0:02:00][%mdl 2048] Black is more active.} 24. c4 {[%emt 0:00:00]} h6 {[%emt 0:00:30]} 25. Re2 {[%emt 0:02:00]} c6 {[%emt 0:00:00]} 26. Red2 {[%emt 0:00:00]} Re4 {[%emt 0:00:00]} 27. Ne1 {[%emt 0:01:00]} Bf8 {[%emt 0:00:00] Black is more active.} 28. Nd3 {[%emt 0:00:00] Black converts the advantage convincingly.} g5 {[%emt 0:00:00]} 29. c5 {[%emt 0:00:00]} (29. Ne1 $142) 29... Rd8 $17 {[%emt 0:00:00]} 30. b4 {[%emt 0:00:00] [#]} (30. Rc2 $17 {is a better defense.}) 30... a5 $1 $19 {[%emt 0:00:00][%mdl 512]} 31. a3 {[%emt 0:00:00]} axb4 {[%emt 0:00:00]} 32. axb4 {[%emt 0:00:00]} Bg7 {[%emt 0:04:00]} 33. Ne1 {[%emt 0:01:43]} Rxd2 {[%emt 0:00:00]} 34. Rxd2 {[%emt 0:00:12]} Rxb4 {[%emt 0:00:00]} 35. f3 {[%emt 0:00:56]} Be6 {[%emt 0:00:00]} 36. g4 {[%emt 0:01:07]} Bd4 {[%emt 0:00:00]} 37. N1c2 {[%emt 0:00:19][%cal Oc2d4]} Rb1+ {[%emt 0:00:00]} ({Not} 37... Bxc5 38. Rd8+ Kg7 39. Nxb4 Bxb4 (39... Bxe3+ 40. Kg2 $11) 40. Kf2 $17) 38. Kg2 {[%emt 0:00:28]} Bxc5 {[%emt 0:03:00] This pair of bishops is nice. Black is clearly winning.} 39. Nd4 {[%emt 0:00:36]} Bxd4 {[%emt 0:00:00]} 40. Rxd4 {[%emt 0:00:09][%mdl 4096] Endgame. KRB-KRN} b5 {[%emt 0:01:00]} 41. Rd6 {[%emt 0:02:26]} c5 {[%emt 0:00:00]} 42. Nf1 {[%emt 0:03:36]} Kf8 {[%emt 0:00:00]} 43. Ng3 {[%emt 0:26:28]} Rb2+ {[%emt 0:31:30]} 44. Kg1 {[%emt 0:00:00]} b4 {[%emt 0:00:00]} 45. Rc6 {[%emt 0:00:00]} Rc2 {[%emt 0:00:00]} 46. Ne4 {[%emt 0:00:00]} b3 {[%emt 0:00:00]} 47. Nxc5 {[%emt 0:00:00]} b2 {[%emt 0:00:00] Weighted Error Value: White=0.34/Black=0.05 (flawless) .  Mistake:       	White=2     	---        Inaccurate:     	White=4     	Black=1      OK:         	White=10    	Black=18     Best:        	White=1     	---} 0-1

[Event "Bangabandhu Premier Div League 2023-24"]
[Site "Dhaka"]
[Date "2024.02.09"]
[Round "9.6"]
[White "Ter-Sahakyan, Samvel"]
[Black "Mrittika Mallick"]
[Result "1-0"]
[ECO "D46"]
[WhiteElo "2649"]
[BlackElo "1859"]
[Annotator "TA"]
[PlyCount "71"]
[EventDate "2024.02.01"]
[EventCountry "BAN"]
[SourceTitle "playchess.com"]
[Source "ChessBase"]
[SourceQuality "1"]
[TimeControl "40/5400+30:1800+30"]

{[%evp 22,71,72,81,97,90,100,104,105,109,100,83,129,110,102,70,93,83,108,110,125,118,266,269,384,365,604,378,579,493,600,585,728,690,689,694,660,666,1066,1043,1097,954,2221,2235,2420,855,2433,2432,1782,1770,1777,1785]} 1. d4 {[%emt 0:00:04]} d5 {[%emt 0:00:07]} 2. c4 {[%emt 0:00:30]} c6 3. Nf3 Nf6 {[%emt 0:00:17]} 4. e3 e6 {[%emt 0:00:46]} 5. Bd3 {[%emt 0:00:00]} Nbd7 6. O-O {[%emt 0:01:04]} Bd6 {[%emt 0:02:29]} 7. Nbd2 {[%emt 0:00:26]} O-O {[%emt 0:01:11]} 8. e4 {[%emt 0:00:24]} dxe4 {[%emt 0:02:37]} 9. Nxe4 {[%emt 0:00:14]} Nxe4 {[%emt 0:00:08]} 10. Bxe4 {[%emt 0:00:04]} Nf6 {[%emt 0:02:10]} 11. Bc2 {[%emt 0:06:26]} Qc7 {[%emt 0:04:21]} 12. Bg5 {[%emt 0:02:22] [#] Qd3 is the strong threat.} Ne8 {[%emt 0:06:54]} 13. Qd3 {[%emt 0:01:16][%csl Gc2][%cal Rd3h7]} g6 {[%emt 0:01:22]} 14. Rad1 {[%emt 0:02:35]} f6 {White is better.} 15. Bh6 {[%emt 0:01:49]} Ng7 {[%emt 0:14:35]} 16. Rfe1 {[%emt 0:00:30]} Re8 {[%emt 0:00:30]} ({Better is} 16... c5) 17. Qc3 {[%emt 0:00:30]} Qf7 {[%emt 0:00:30]} 18. Bc1 {[%emt 0:03:23] White has more active pieces.} Bd7 {[%emt 0:01:46]} 19. Nd2 {[%emt 1:18:23]} Rad8 {[%emt 0:11:05]} 20. Ne4 {[%emt 0:00:00]} Bb8 {[%emt 0:49:42]} 21. Qf3 {[%emt 0:00:00]} Nf5 {[%emt 0:00:00] A mistake that costs the game.} (21... Rf8 $16) 22. g4 $18 {[%emt 0:00:00]} Ne7 {[%emt 0:01:00]} (22... Kg7 {was worth a try.} 23. gxf5 exf5) 23. Qxf6 {[%emt 0:00:00] Black is weak on the dark squares} ({Resist} 23. Nxf6+ Kh8 24. Bh6 Rf8 $18) 23... Nc8 $2 {[%emt 0:00:00]} (23... Qxf6 24. Nxf6+ Kg7 25. Nxe8+ Rxe8) 24. Bg5 {[%emt 0:00:00]} Ne7 {[%emt 0:00:00]} (24... Nd6 $142 25. Qxf7+ (25. Qxd8 Rxd8 26. Bxd8 Nxe4 $11) 25... Kxf7 26. Bxd8 Nxe4) 25. Rd3 {[%emt 0:03:00] White is clearly winning.} Qg7 {[%emt 0:00:00]} 26. Rh3 {[%emt 0:00:00]} e5 {[%emt 0:00:00]} 27. Bh6 {[%emt 0:00:00]} Qxf6 {[%emt 0:00:00]} 28. Nxf6+ {[%emt 0:00:00]} Kf7 {[%emt 0:00:00]} 29. Rf3 {[%emt 0:00:00]} (29. Nxh7 Bxg4 30. Rb3 Rxd4 $14) 29... Ke6 {[%emt 0:03:30]} 30. dxe5 {[%emt 0:00:00]} Ng8 {[%emt 0:00:00]} 31. Bg5 {[%emt 0:03:00]} Rf8 {[%emt 0:00:00]} 32. c5 {[%emt 0:00:00] [#] White threatens Bb3+ and mate.} Ne7 {[%emt 0:00:00]} 33. Bb3+ {[%emt 0:00:00]} Nd5 {[%emt 0:00:00]} 34. Nxd5 {[%emt 0:00:00]} cxd5 {[%emt 0:02:30]} 35. Rf6+ {[%emt 0:00:00]} Rxf6 {[%emt 0:00:00]} 36. exf6+ {[%emt 0:02:30] Weighted Error Value: White=0.27 (precise) /Black=0.70.  Mistake:       	---       	Black=5      Inaccurate:     	White=2     	---        OK:         	White=4     	Black=4      Best:        	White=2     	---} 1-0

[Event "Bangabandhu Premier Div League 2023-24"]
[Site "Dhaka"]
[Date "2024.02.09"]
[Round "9.6"]
[White "Ahmed, Sheikh Nasir"]
[Black "Kushagra Mohan"]
[Result "1-0"]
[ECO "A20"]
[WhiteElo "2182"]
[BlackElo "2374"]
[Annotator "TA"]
[PlyCount "117"]
[EventDate "2024.02.01"]
[EventCountry "BAN"]
[SourceTitle "playchess.com"]
[Source "ChessBase"]
[SourceQuality "1"]
[TimeControl "40/5400+30:1800+30"]

{[%evp 22,117,49,47,95,110,84,102,85,72,125,128,220,223,206,218,231,120,115,120,114,120,131,134,117,122,144,139,148,134,139,139,160,162,159,160,158,165,168,163,237,219,244,218,283,218,259,230,277,277,276,263,258,286,278,262,382,345,479,479,470,437,320,323,337,300,445,148,1267,725,907,1197,1551,1379,1447,1334,2912,2853,2681,29959,29969,29970,29970,29967,29967,29964,29973,29973,29973,29967,29946,2048,29960,945,29945,6641,29981,29982]} 1. c4 {[%emt 1:31:00]} e5 {[%emt 0:05:18]} 2. g3 {[%emt 0:00:00]} Nf6 {[%emt 0:00:05]} 3. Bg2 {[%emt 0:00:00]} c6 {[%emt 0:00:07]} 4. d4 {[%emt 0:00:00]} e4 {[%emt 0:00:02]} 5. d5 {[%emt 0:00:00]} Bb4+ {[%emt 0:00:04]} 6. Bd2 {[%emt 0:00:00] A20: English Opening: 1...e5.} Qe7 {[%emt 0:00:04]} 7. Nc3 {[%emt 0:00:00]} O-O {[%emt 0:00:10]} 8. Nh3 {[%emt 0:00:00]} Bc5 {[%emt 0:09:02]} 9. Bg5 {[%emt 0:00:00]} e3 $146 {[%emt 0:05:29]} ({Predecessor:} 9... d6 10. Qb3 e3 11. f4 Bb6 12. Bxf6 Qxf6 13. Ng5 Bf5 14. O-O Re8 15. a4 Qe7 {1-0 Moran,R (1832)-Sadler,K (1805) NAPZ/WS/O/61 email 2015}) 10. Ne4 {[%emt 0:00:00]} exf2+ {[%emt 0:00:30]} 11. Nhxf2 Bxf2+ {[%emt 0:00:30]} 12. Nxf2 {[%emt 0:00:00]} cxd5 {[%emt 0:06:46]} (12... h6 $1 $14 13. d6 Qe6) 13. O-O $16 {[%emt 0:00:00]} (13. Bxd5 Qb4+ 14. Qd2 Nxd5 15. cxd5 Qxd2+ 16. Kxd2 d6 $14) 13... h6 {[%emt 0:07:32]} 14. Bxf6 {[%emt 0:00:00]} Qxf6 {[%emt 0:00:38]} 15. Bxd5 {[%emt 0:00:00]} (15. cxd5 $6 Qxb2 16. d6 Nc6 $11) 15... Qb6 {[%emt 0:06:40]} (15... Qxb2 $142 16. Ne4 Nc6) 16. Qb3 $16 {[%emt 0:00:00]} Qxb3 {[%emt 0:05:18]} (16... d6 $16 {was worth a try.}) 17. axb3 $18 {[%emt 0:00:00]} Nc6 {[%emt 0:00:01]} 18. Ne4 {[%emt 0:00:00]} Nb4 {[%emt 0:00:48]} 19. Rad1 {[%emt 0:00:00]} (19. Nd6 $18 {[%cal Rd5f7]} Nxd5 20. cxd5) 19... Nxd5 $16 {[%emt 0:50:56]} 20. Rxd5 {[%emt 0:00:00]} d6 {[%emt 0:00:00]} 21. Rxd6 {[%emt 0:00:00]} Bg4 {[%emt 0:00:00]} 22. Nc3 {[%emt 0:00:00]} Rfe8 {[%emt 0:00:00]} 23. Rf4 {[%emt 0:00:00]} h5 {[%emt 0:00:00]} 24. Kf2 {[%emt 0:00:00]} Re5 {[%emt 0:00:00]} 25. Rfd4 {[%emt 0:00:00]} Rae8 {[%emt 0:00:00]} 26. Rd8 {[%emt 0:00:00]} Rf5+ {[%emt 0:00:00]} 27. Kg2 {[%emt 0:00:00]} Rfe5 {[%emt 0:00:00]} 28. Rxe8+ {[%emt 0:00:00]} Rxe8 {[%emt 0:00:00]} 29. Kf2 {[%emt 0:00:00]} Re6 {[%emt 0:00:00]} 30. b4 {[%emt 0:00:00]} Bh3 {[%emt 0:00:00]} (30... a6 $142 31. c5 g5) 31. b5 $18 {[%emt 0:01:14]} Rf6+ {[%emt 0:00:00]} 32. Rf4 {[%emt 0:01:06]} Rd6 {[%emt 0:00:00]} 33. Ke3 {[%emt 0:01:22]} f6 {[%emt 0:00:00]} 34. Rd4 {[%emt 0:00:32]} Re6+ {[%emt 0:00:00]} 35. Re4 {[%emt 0:03:08]} Kf7 {[%emt 0:00:00]} 36. Rxe6 {[%emt 0:01:46]} Kxe6 {[%emt 0:00:00]} 37. Kd4 {[%emt 0:00:25]} Bg2 {[%emt 0:00:00]} 38. e4 {[%emt 0:03:07]} b6 {[%emt 0:00:00]} (38... Bf3 $142 39. Nd5 Bd1) 39. b4 {[%emt 0:03:05]} g5 {[%emt 0:00:00]} 40. Nd5 {[%emt 0:02:29]} Bf1 {[%emt 0:00:00]} 41. c5 {[%emt 0:30:52]} h4 {[%emt 0:14:42]} 42. gxh4 {[%emt 0:00:00]} (42. cxb6 axb6 43. gxh4 (43. Nxb6 hxg3 44. hxg3 Bxb5 $18) 43... gxh4 44. Nxb6 Bxb5) 42... gxh4 {[%emt 0:00:00]} 43. Nf4+ {[%emt 0:00:00]} (43. cxb6 axb6 44. Nxb6 Bxb5 $18) 43... Kd7 {[%emt 0:00:00]} (43... Kf7 {might work better.} 44. c6 Ke7) 44. Ng6 $2 {[%emt 0:02:24]} (44. cxb6 $18 {and the rest is easy.} axb6 45. Ng6) 44... Bxb5 $2 {[%emt 0:27:48][%mdl 8192]} (44... bxc5+ $16 45. Kxc5 (45. bxc5 Bxb5 46. Nxh4 a5 $16) 45... Bg2) 45. cxb6 $18 {[%emt 0:00:00]} ({Weaker is} 45. Nxh4 a5 $16) 45... axb6 {[%emt 0:00:00]} 46. Nxh4 {[%emt 0:00:00]} Ke6 {[%emt 0:01:00]} 47. Nf5 {[%emt 0:00:00]} Be2 {[%emt 0:00:30]} 48. h4 {[%emt 0:00:00]} Kf7 {[%emt 0:00:00]} 49. Kd5 {[%emt 0:02:30]} Bd3 {[%emt 0:01:00]} 50. Ng3 {[%emt 0:00:00]} (50. Nd6+ $18 Kf8 51. Ke6) 50... Kg6 {[%emt 0:00:00]} 51. Kc6 {[%emt 0:00:00]} b5 {[%emt 0:00:00]} 52. Kc5 {[%emt 0:00:00]} Bc4 {[%emt 0:00:00]} 53. Kd6 {[%emt 0:02:00]} Bd3 {[%emt 0:00:00]} 54. Ke6 {[%emt 0:00:00]} Bc4+ {[%emt 0:00:00]} 55. Ke7 {[%emt 0:00:00]} Bb3 {[%emt 0:03:00]} 56. Nf5 {[%emt 0:00:00]} (56. h5+ $142 Kg5 57. Nf5 Kxh5 58. Kxf6 Kg4 59. e5 Kf4 60. e6 Bd5 61. Nd4) 56... Bc2 {[%emt 0:00:00]} 57. Nd6 {[%emt 0:00:00]} (57. h5+ $142 Kxh5 58. Kxf6 Bb3 59. e5 Kg4 60. e6 Bxe6 61. Kxe6 Kg5 62. Nd4) 57... Bd3 {[%emt 0:00:00]} 58. h5+ {[%emt 0:00:00]} Kxh5 {[%emt 0:00:00]} 59. Kxf6 {[%emt 0:00:00]} 1-0